bitfinex-derivatives/quotes_BTCF0:USTF0_20250806
["timestamp","ask_amount","ask_price","bid_price","bid_amount"]
[1754491073019,0.45934,114290.0,114280.0,0.97216565]
[1754491073517,0.6343317,114290.0,114280.0,0.97216565]
[1754491073925,0.99645197,114290.0,114280.0,0.77391895]
[1754491075113,0.99645197,114290.0,114280.0,0.61736]
[1754491075520,0.3595219,114270.0,114260.0,0.68977557]
[1754491075718,0.99448217,114270.0,114260.0,1.26337667]
[1754491075918,0.99448217,114270.0,114260.0,1.03993882]
[1754491076223,0.99448217,114270.0,114260.0,0.99767992]
[1754491076420,0.99448217,114270.0,114260.0,0.82115612]
[1754491077016,0.99448217,114270.0,114260.0,0.77453975]
[1754491077215,0.99448217,114270.0,114260.0,0.77653975]
[1754491078521,0.99448217,114270.0,114260.0,0.95157625]
[1754491078831,0.99448217,114270.0,114260.0,0.97226896]
[1754491079135,0.6323619,114270.0,114260.0,0.97226896]
[1754491079327,0.99448217,114270.0,114260.0,0.97467896]
[1754491079529,0.99448207,114270.0,114260.0,0.97467896]
[1754491079724,0.23204,114270.0,114260.0,0.98667896]
[1754491079925,0.12725,114270.0,114260.0,0.98667896]
[1754491080626,0.5201019,114270.0,114260.0,0.98667896]
[1754491080831,0.98358217,114270.0,114260.0,0.15916246]
[1754491081129,0.98358217,114270.0,114260.0,0.77848246]
[1754491081329,0.98358217,114270.0,114260.0,0.95351936]
[1754491081534,0.98358217,114270.0,114260.0,0.97272936]
[1754491081535,0.6214619,114270.0,114260.0,0.97272936]
[1754491081836,0.6214619,114270.0,114260.0,0.79769246]
[1754491082130,0.98358217,114270.0,114260.0,0.79769246]
[1754491082334,0.98358217,114270.0,114260.0,0.97272956]
[1754491082536,0.98358217,114270.0,114260.0,0.79769246]
[1754491082729,0.98358217,114270.0,114260.0,0.77648246]
[1754491083229,0.98458217,114270.0,114260.0,0.97072956]
[1754491084030,0.98458217,114270.0,114260.0,0.96872956]
[1754491084031,0.6224619,114270.0,114260.0,0.96872956]
[1754491084231,0.6224619,114270.0,114260.0,0.96972956]
[1754491084537,0.6224619,114270.0,114260.0,0.79469246]
[1754491084731,0.98458217,114270.0,114260.0,0.96972946]
[1754491085036,0.6224619,114270.0,114260.0,0.96872836]
[1754491085536,0.4046319,114270.0,114260.0,0.96872836]
[1754491085730,0.6224619,114270.0,114260.0,0.96872836]
[1754491086137,0.44744,114270.0,114260.0,0.98072836]
[1754491086334,0.6224614,114270.0,114260.0,0.98072836]
[1754491087734,0.6224614,114270.0,114260.0,0.8235659]
[1754491088440,0.44744,114270.0,114260.0,0.8235659]
[1754491088643,0.6224612,114270.0,114260.0,0.8235659]
[1754491088839,0.6224612,114270.0,114260.0,0.8235267]
[1754491089145,0.98458147,114270.0,114260.0,0.61728]
[1754491090841,0.6217668,114260.0,114250.0,0.1659426]
[1754491091045,0.98388707,114260.0,114250.0,0.62602014]
[1754491091439,0.98388707,114260.0,114250.0,0.80107224]
[1754491091846,0.98388707,114260.0,114250.0,0.82028224]
[1754491092355,0.44673,114260.0,114250.0,0.82028224]
[1754491092643,0.37395,114260.0,114250.0,0.9784447]
[1754491092847,0.04826,114260.0,114250.0,0.9904447]
[1754491094253,0.04826,114260.0,114250.0,0.83228224]
[1754491095054,0.04926,114260.0,114250.0,0.98913735]
[1754491095253,0.04926,114260.0,114250.0,0.99013735]
[1754491095551,0.04826,114260.0,114250.0,0.99013735]
[1754491095751,0.04826,114260.0,114250.0,0.83328224]
[1754491096251,0.04826,114260.0,114250.0,0.83228224]
[1754491096554,0.04826,114260.0,114250.0,0.83328224]
[1754491097051,0.26609,114260.0,114250.0,0.83328224]
[1754491097354,0.31494,114260.0,114250.0,0.83328224]
[1754491098351,0.04826,114260.0,114250.0,0.83328224]
[1754491098951,0.04826,114260.0,114250.0,1.03707836]
[1754491100255,0.34537,114260.0,114250.0,1.03707836]
[1754491100750,0.44673,114260.0,114250.0,1.03707836]
[1754491101355,0.44673,114260.0,114250.0,1.03699836]
[1754491102256,0.04826,114260.0,114250.0,1.03699836]
[1754491102651,0.66840357,114280.0,114270.0,0.1942314]
[1754491102652,0.09711,114280.0,114270.0,0.1942314]
[1754491102860,0.34537,114280.0,114270.0,0.8233514]
[1754491103157,0.621736,114280.0,114270.0,0.8233514]
[1754491103456,0.621736,114280.0,114270.0,0.8113514]
[1754491103647,0.98385627,114280.0,114270.0,0.7921414]
[1754491103847,0.98385627,114280.0,114270.0,0.8113514]
[1754491104659,0.98385627,114280.0,114270.0,0.61712]
[1754491105156,0.98385627,114280.0,114270.0,0.94908924]
[1754491105461,0.98585627,114280.0,114270.0,0.77406754]
[1754491105963,0.98585627,114280.0,114270.0,0.94908924]
[1754491106156,0.98585627,114280.0,114270.0,0.77406754]
[1754491106655,0.98585627,114280.0,114270.0,0.15694754]
[1754491107153,1.45987227,114280.0,114270.0,0.15694754]
[1754491107458,0.3556766,114260.0,114250.0,0.80186924]
[1754491107645,0.98388687,114260.0,114250.0,0.94946924]
[1754491108457,0.98388687,114260.0,114250.0,1.15326536]
[1754491110066,0.98488687,114260.0,114250.0,1.15326536]
[1754491111460,0.98488687,114260.0,114250.0,1.15226536]
[1754491112261,0.98488687,114260.0,114250.0,1.09627626]
[1754491112461,0.98488687,114260.0,114250.0,1.27132806]
[1754491113263,0.98488687,114260.0,114250.0,1.27132816]
[1754491113462,0.98488687,114260.0,114250.0,1.09627626]
[1754491114258,0.98488687,114260.0,114250.0,1.27132816]
[1754491114463,0.98488687,114260.0,114250.0,1.09627626]
[1754491115070,0.98488687,114260.0,114250.0,1.27132816]
[1754491116656,0.98488687,114260.0,114250.0,1.09627626]
[1754491117464,0.98488687,114260.0,114250.0,0.20379612]
[1754491117676,0.98488687,114260.0,114230.0,0.61692]
[1754491117677,0.2635893,114240.0,114230.0,0.61692]
[1754491117962,0.80077677,114240.0,114230.0,0.76421]
[1754491118168,0.80077677,114240.0,114230.0,0.86079]
[1754491118362,1.07252677,114240.0,114230.0,0.86079]
[1754491118560,1.07252677,114240.0,114230.0,1.0358725]
[1754491118761,1.02875667,114240.0,114230.0,1.0378725]
[1754491119068,0.98498747,114240.0,114230.0,1.0398725]
[1754491119269,0.98498747,114240.0,114230.0,0.88586]
[1754491119567,0.6228672,114240.0,114230.0,0.88586]
[1754491119961,0.98498747,114240.0,114230.0,0.88586]
[1754491120167,0.98498747,114240.0,114230.0,1.0609425]
[1754491120669,0.22493,114240.0,114230.0,1.0741125]
[1754491120972,0.09409,114240.0,114230.0,1.0741125]
[1754491121570,0.6177378,114250.0,114240.0,0.27811]
[1754491122268,0.6666178,114250.0,114240.0,0.4400071]
[1754491122866,0.98497507,114250.0,114240.0,0.4400071]
[1754491123069,0.6228548,114250.0,114240.0,0.4531771]
[1754491123271,0.3999817,114250.0,114240.0,0.4531771]
[1754491123470,0.4732217,114250.0,114240.0,0.4531771]
[1754491123766,0.12518,114250.0,114240.0,0.4531771]
[1754491124265,0.12518,114250.0,114240.0,0.4541771]
[1754491124473,0.04888,114250.0,114240.0,0.4541771]
[1754491124673,0.04888,114260.0,114250.0,0.4531617]
[1754491124966,0.22287,114270.0,114260.0,0.1750365]
[1754491125170,0.4467711,114270.0,114260.0,0.4531465]
[1754491125367,0.34805,114270.0,114260.0,0.4531465]
[1754491125564,0.4478,114270.0,114260.0,0.4531465]
[1754491125967,0.6228212,114270.0,114260.0,0.4531465]
[1754491126369,0.4478,114270.0,114260.0,0.4531465]
[1754491126570,0.4498,114270.0,114260.0,0.4531465]
[1754491128071,0.6248211,114270.0,114260.0,0.4531465]
[1754491128876,0.6258211,114270.0,114260.0,0.4531465]
[1754491130068,0.4508,114270.0,114260.0,0.4531465]
[1754491132875,0.05188,114270.0,114260.0,0.76207288]
[1754491133382,0.003,114270.0,114260.0,0.96612993]
[1754491133984,0.05088,114270.0,114260.0,0.65920355]
[1754491134367,0.20042,114270.0,114260.0,0.65920355]
[1754491134675,0.002,114270.0,114260.0,0.4551465]
[1754491134874,0.05088,114270.0,114260.0,0.4531465]
[1754491135076,0.30017,114270.0,114260.0,0.4531465]
[1754491135274,0.4498,114270.0,114260.0,0.4531465]
[1754491135674,0.4478,114270.0,114260.0,0.4551465]
[1754491136380,0.4478,114270.0,114260.0,0.4531465]
[1754491136582,0.4478,114270.0,114260.0,0.4541465]
[1754491137581,0.19842,114270.0,114260.0,0.4541465]
[1754491137781,0.04888,114270.0,114260.0,0.4541465]
[1754491137986,0.04888,114280.0,114270.0,0.4878143]
[1754491138174,0.34805,114280.0,114270.0,1.1571992]
[1754491138374,0.4478,114280.0,114270.0,1.1571992]
[1754491138680,1.02850049,114280.0,114270.0,0.1750207]
[1754491138976,1.07225319,114280.0,114270.0,0.61656]
[1754491139976,0.6167608,114270.0,114260.0,0.4399629]
[1754491140176,0.44174,114270.0,114260.0,1.0565229]
[1754491141084,0.44174,114270.0,114260.0,1.0696929]
[1754491141284,0.44174,114270.0,114260.0,1.0565229]
[1754491141678,0.44174,114270.0,114260.0,1.0696929]
[1754491142090,0.44274,114270.0,114260.0,1.0696929]
[1754491142885,0.04866,114270.0,114260.0,1.0696929]
[1754491143290,0.12516,114270.0,114260.0,1.0696929]
[1754491143482,0.44274,114270.0,114260.0,1.0696929]
[1754491145187,0.001,114270.0,114260.0,1.0696929]
[1754491145489,0.04866,114270.0,114260.0,1.0696929]
[1754491147792,0.6167302,114290.0,114280.0,0.4399155]
[1754491148090,0.44174,114290.0,114280.0,1.0562355]
[1754491148289,0.61673,114290.0,114280.0,1.0562355]
[1754491148891,0.3526252,114280.0,114270.0,0.3842525]
[1754491149099,0.97868789,114280.0,114270.0,0.8787925]
[1754491149482,0.84582749,114280.0,114270.0,0.7913005]
[1754491149691,0.80207379,114280.0,114270.0,0.7913005]
[1754491150089,0.97868789,114280.0,114270.0,0.9130405]
[1754491150289,0.98168789,114280.0,114270.0,0.7913005]
[1754491150686,0.98168789,114280.0,114270.0,0.3181905]
[1754491150890,0.98168789,114280.0,114270.0,1.0351005]
[1754491151091,0.80668269,114280.0,114270.0,1.0351005]
[1754491151286,0.6197452,114280.0,114270.0,1.0351005]
[1754491152095,0.98168789,114280.0,114270.0,0.7912605]
[1754491152298,0.3526412,114270.0,114260.0,0.5274508]
[1754491152594,0.6167765,114260.0,114250.0,1.26021245]
[1754491152891,0.97871919,114260.0,114250.0,0.82025705]
[1754491153390,0.97871919,114260.0,114250.0,0.99530885]
[1754491153587,0.97871919,114260.0,114250.0,0.82025705]
[1754491153788,0.97871919,114260.0,114250.0,0.6162]
[1754491154495,0.97871919,114260.0,114250.0,0.9344218]
[1754491154695,0.92582439,114260.0,114250.0,0.75937]
[1754491156495,0.92582439,114260.0,114250.0,0.934422]
[1754491156896,0.75078789,114260.0,114250.0,1.056162]
[1754491157297,0.92582459,114260.0,114250.0,1.056162]
[1754491157500,0.92582459,114260.0,114250.0,0.88111]
[1754491157899,0.92582459,114260.0,114250.0,1.0561621]
[1754491158591,0.75078789,114260.0,114250.0,1.0561621]
[1754491158796,0.75078789,114260.0,114250.0,1.0693321]
[1754491158993,0.44174,114260.0,114250.0,1.0571621]
[1754491159195,0.44174,114260.0,114250.0,1.0703321]
[1754491159598,0.44174,114260.0,114250.0,1.0693321]
[1754491159993,0.12416,114260.0,114250.0,1.0693321]
[1754491160193,0.70053239,114270.0,114260.0,0.4399472]
[1754491160194,0.92580969,114270.0,114260.0,0.4399472]
[1754491160699,0.75078789,114270.0,114260.0,0.4399472]
[1754491160894,0.09323,114270.0,114260.0,0.4399472]
[1754491161093,0.04766,114270.0,114260.0,0.4531172]
[1754491161287,0.92580969,114270.0,114260.0,1.0692371]
[1754491161497,0.92580969,114270.0,114260.0,1.0560671]
[1754491161800,0.75078789,114270.0,114260.0,1.0560671]
[1754491162294,0.92780969,114270.0,114260.0,1.0560671]
[1754491163598,0.75278789,114270.0,114260.0,1.0560671]
[1754491164000,0.75278789,114270.0,114260.0,1.0692371]
[1754491164395,0.75378789,114270.0,114260.0,1.0692371]
[1754491164901,0.75378789,114270.0,114260.0,1.0560671]
[1754491165103,0.53732789,114270.0,114260.0,1.0692371]
[1754491165301,0.75378789,114270.0,114260.0,1.0692371]
[1754491166496,0.05066,114270.0,114260.0,1.0692371]
[1754491166901,0.30112,114270.0,114260.0,1.0560671]
[1754491167099,0.75378789,114270.0,114260.0,1.0560671]
[1754491167300,0.75378789,114270.0,114260.0,1.0692371]
[1754491167600,0.92780979,114270.0,114260.0,1.0560671]
[1754491167795,0.75278789,114270.0,114260.0,1.0560671]
[1754491167991,0.75278789,114270.0,114250.0,0.29157785]
[1754491168302,0.1750523,114250.0,114240.0,0.14317]
[1754491168504,0.6168077,114240.0,114230.0,1.61301158]
[1754491168705,0.92585559,114240.0,114230.0,2.40409458]
[1754491169002,0.92585559,114240.0,114230.0,2.22901158]
[1754491169204,0.92585559,114240.0,114230.0,2.40409478]
[1754491169404,0.75078789,114240.0,114230.0,2.40409478]
[1754491169700,0.04766,114260.0,114250.0,0.4399558]
[1754491169906,0.04766,114260.0,114250.0,1.0691258]
[1754491170106,0.16292,114260.0,114250.0,1.0691258]
[1754491170304,0.31242,114260.0,114250.0,1.0691258]
[1754491170805,0.74836789,114260.0,114250.0,1.0691258]
[1754491171007,0.74836789,114260.0,114250.0,1.0559558]
[1754491171608,0.43932,114260.0,114250.0,1.0691258]
[1754491171901,0.92340509,114260.0,114250.0,1.0559558]
[1754491172100,0.74836789,114260.0,114250.0,1.0559558]
[1754491172500,0.43932,114260.0,114250.0,1.0559558]
[1754491172702,0.43932,114260.0,114250.0,1.0691258]
[1754491173006,0.43932,114260.0,114250.0,0.4531258]
[1754491173209,0.43932,114260.0,114250.0,1.0690858]
[1754491173610,0.43932,114260.0,114250.0,1.0559158]
[1754491174909,0.43932,114260.0,114250.0,1.0690858]
[1754491175411,0.614357,114260.0,114250.0,1.0559158]
[1754491175712,0.97641965,114260.0,114250.0,1.0559158]
[1754491175912,0.43932,114260.0,114250.0,1.0559158]
[1754491176212,0.43932,114260.0,114250.0,1.0690858]
[1754491177207,0.43932,114260.0,114250.0,1.0559158]
[1754491178814,0.6143571,114260.0,114250.0,1.0559158]
[1754491180608,0.6143571,114260.0,114250.0,1.0557958]
[1754491180910,0.97641975,114260.0,114250.0,0.9275658]
[1754491181107,0.97641975,114260.0,114250.0,0.7908923]
[1754491181415,0.97641975,114260.0,114250.0,1.0247923]
[1754491182714,0.97641975,114260.0,114250.0,0.84974]
[1754491182913,0.97641975,114260.0,114250.0,0.99494935]
[1754491183114,0.97641975,114260.0,114250.0,1.22884935]
[1754491183511,0.28982,114260.0,114250.0,1.22884935]
[1754491183704,0.222697,114260.0,114250.0,1.24201935]
[1754491184016,0.3426,114260.0,114250.0,1.24201935]
[1754491184200,0.1750342,114270.0,114260.0,0.293327]
[1754491184404,0.6113917,114270.0,114260.0,0.443177]
[1754491184605,0.6113917,114270.0,114260.0,0.430007]
[1754491184911,0.43637,114270.0,114260.0,0.430007]
[1754491185105,0.12261,114270.0,114260.0,0.443177]
[1754491185309,0.5591706,114280.0,114270.0,0.4431617]
[1754491185510,0.6551406,114280.0,114270.0,1.0589217]
[1754491185912,0.04546,114280.0,114270.0,1.0589217]
[1754491187014,0.3357263,114280.0,114270.0,1.0589217]
[1754491187213,0.5154063,114280.0,114270.0,1.0589217]
[1754491187415,0.5174063,114280.0,114270.0,1.0589217]
[1754491188105,0.6133763,114280.0,114270.0,1.0589217]
[1754491188311,0.6123763,114280.0,114270.0,1.0457517]
[1754491188616,0.97443895,114280.0,114270.0,0.4299917]
[1754491188819,0.97643895,114280.0,114270.0,1.0456717]
[1754491189015,0.97643895,114280.0,114270.0,0.7907017]
[1754491189722,0.97643895,114280.0,114270.0,1.0246017]
[1754491191219,0.97643895,114280.0,114270.0,0.7907017]
[1754491191521,0.97643895,114280.0,114270.0,1.0456717]
[1754491192315,0.97643895,114280.0,114270.0,0.7907017]
[1754491192719,0.97643895,114280.0,114270.0,1.0246017]
[1754491194318,0.97643895,114280.0,114270.0,0.7907017]
[1754491194625,0.92332512,114280.0,114270.0,0.7907017]
[1754491195013,0.92332512,114280.0,114270.0,0.9273817]
[1754491195522,0.92332512,114280.0,114270.0,0.9089917]
[1754491195718,0.92332512,114280.0,114270.0,1.0456717]
[1754491199715,0.1750222,114270.0,114260.0,0.2187851]
[1754491199921,0.6103175,114260.0,114250.0,0.5535747]
[1754491200120,0.91926632,114260.0,114250.0,1.1252519]
[1754491200314,0.6103328,114250.0,114240.0,0.44733705]
[1754491200512,0.91928162,114250.0,114240.0,1.06277705]
[1754491200719,0.91928162,114250.0,114240.0,1.21677515]
[1754491201625,0.91928162,114250.0,114240.0,1.21877515]
[1754491202214,0.91928162,114250.0,114240.0,0.82149705]
[1754491202419,0.91928162,114250.0,114240.0,0.75015]
[1754491202724,0.91928162,114250.0,114240.0,0.927218]
[1754491202926,0.91928162,114250.0,114240.0,1.016718]
[1754491203120,0.91928162,114250.0,114240.0,1.014718]
[1754491203425,0.91928162,114250.0,114240.0,1.015718]
[1754491203625,0.91928162,114250.0,114240.0,1.014718]
[1754491204329,0.91928162,114250.0,114240.0,0.83965]
[1754491204827,0.91928162,114250.0,114240.0,1.0147169]
[1754491205127,0.91928162,114250.0,114240.0,0.83965]
[1754491205321,0.91928162,114250.0,114240.0,1.0147169]
[1754491205921,0.91928162,114250.0,114240.0,0.83965]
[1754491206127,0.91928162,114250.0,114240.0,0.75015]
[1754491206314,0.91928162,114250.0,114240.0,0.002]
[1754491206518,0.91928162,114250.0,114240.0,0.61744]
[1754491206823,0.91928162,114250.0,114240.0,0.002]
[1754491207028,1.53468162,114250.0,114240.0,0.002]
[1754491207420,1.84363044,114250.0,114240.0,0.002]
[1754491207622,2.31869444,114250.0,114240.0,0.002]
[1754491207827,1.22824454,114240.0,114230.0,0.6154]
[1754491208224,0.3474522,114230.0,114220.0,0.84291423]
[1754491208426,0.91931102,114230.0,114220.0,0.97562423]
[1754491208826,0.91931102,114230.0,114220.0,1.06512423]
[1754491209021,0.6103776,114220.0,114210.0,0.62563995]
[1754491209226,0.91932642,114220.0,114210.0,1.06597705]
[1754491209431,0.91932642,114220.0,114210.0,0.81949705]
[1754491209634,0.91632642,114220.0,114210.0,0.7905529]
[1754491210132,0.91632642,114220.0,114210.0,1.0370329]
[1754491210330,0.91532642,114220.0,114210.0,1.0420329]
[1754491210824,0.91632642,114220.0,114210.0,1.0370329]
[1754491211632,0.91632642,114220.0,114210.0,1.0370288]
[1754491212537,0.3941776,114220.0,114210.0,1.0521988]
[1754491212728,0.3021076,114220.0,114210.0,1.0521988]
[1754491213028,0.61105642,114220.0,114210.0,1.0521988]
[1754491213234,0.91632642,114220.0,114210.0,1.0521988]
[1754491213422,0.91732642,114220.0,114210.0,1.0521988]
[1754491213822,0.53175642,114220.0,114210.0,1.0521988]
[1754491214029,0.2228076,114220.0,114210.0,1.0521988]
[1754491214624,0.3738776,114220.0,114210.0,1.0521988]
[1754491214831,0.6083776,114220.0,114210.0,1.0521988]
[1754491215237,0.91732642,114220.0,114210.0,1.0521988]
[1754491216431,0.91732642,114220.0,114210.0,1.0370288]
[1754491217130,0.53302882,114220.0,114210.0,1.0370288]
[1754491217327,0.53302882,114220.0,114210.0,1.0521988]
[1754491217530,0.74622882,114220.0,114210.0,1.0521988]
[1754491218835,0.43728,114220.0,114210.0,1.0521988]
[1754491219029,0.92032192,114220.0,114210.0,1.0521988]
[1754491219224,0.92232192,114220.0,114210.0,1.0370288]
[1754491219423,0.61705192,114220.0,114210.0,1.0370288]
[1754491219629,0.61705192,114220.0,114210.0,1.0521988]
[1754491219630,0.83025192,114220.0,114210.0,1.0521988]
[1754491219829,0.92132192,114220.0,114210.0,1.0521988]
[1754491220031,0.92332192,114220.0,114210.0,1.0521988]
[1754491220529,0.74822882,114220.0,114210.0,1.0521988]
[1754491220724,0.53402882,114220.0,114210.0,1.0370288]
[1754491220928,0.05471,114220.0,114210.0,1.36106762]
[1754491221131,0.4679133,114240.0,114230.0,0.2888478]
[1754491221338,0.74422882,114240.0,114230.0,1.0369178]
[1754491221532,0.74422882,114240.0,114230.0,1.0520878]
[1754491221729,0.91929132,114240.0,114230.0,1.0520878]
[1754491222336,0.91929132,114240.0,114230.0,1.0369178]
[1754491222537,0.74422882,114240.0,114230.0,1.0369178]
[1754491222731,0.43528,114240.0,114230.0,1.0369178]
[1754491222933,0.91929212,114240.0,114230.0,1.0369178]
[1754491223133,0.92229212,114240.0,114230.0,1.0369178]
[1754491223334,0.92729212,114240.0,114230.0,1.0369178]
[1754491223530,0.75222882,114240.0,114230.0,1.0369178]
[1754491223731,0.75222882,114240.0,114230.0,1.0520878]
[1754491223927,0.44328,114240.0,114230.0,1.0520878]
[1754491224132,0.05771,114240.0,114230.0,1.36103662]
[1754491224434,0.05771,114240.0,114230.0,1.0520878]
[1754491225739,0.35121,114240.0,114230.0,1.0520878]
[1754491226042,0.92729202,114240.0,114230.0,1.0369178]
[1754491226539,0.75222882,114240.0,114230.0,1.0369178]
[1754491226741,0.75222882,114240.0,114230.0,1.0520878]
[1754491227042,0.44328,114240.0,114230.0,1.0520878]
[1754491227544,0.618344,114240.0,114230.0,1.0520878]
[1754491228245,0.618344,114240.0,114230.0,1.0367978]
[1754491228436,0.75222882,114240.0,114230.0,1.0367978]
[1754491228936,0.44328,114240.0,114230.0,1.0519678]
[1754491230344,0.05771,114240.0,114230.0,1.0519678]
[1754491230537,0.36665882,114240.0,114230.0,1.0519678]
[1754491230740,0.65521882,114240.0,114230.0,1.0519678]
[1754491231149,0.74280882,114240.0,114230.0,1.0519678]
[1754491232040,0.51251882,114240.0,114230.0,1.0519678]
[1754491232241,0.41300882,114240.0,114230.0,1.0519678]
[1754491232437,0.65521882,114240.0,114230.0,1.0519678]
[1754491232641,0.43386,114240.0,114230.0,1.0519678]
[1754491232841,0.05771,114240.0,114230.0,1.36091662]
[1754491233951,0.008,114240.0,114230.0,1.36091662]
[1754491234451,0.008,114240.0,114230.0,1.33664662]
[1754491235147,0.16236,114260.0,114250.0,0.2899291]
[1754491235347,0.16236,114260.0,114250.0,1.0326891]
[1754491236047,0.04804,114260.0,114250.0,1.0326891]
[1754491236248,0.68509882,114280.0,114270.0,0.3933085]
[1754491236452,0.68509882,114280.0,114270.0,1.0083485]
[1754491236654,0.86010202,114280.0,114270.0,1.0083485]
[1754491237149,0.68509882,114280.0,114270.0,1.0083485]
[1754491237352,0.86010202,114280.0,114270.0,1.0083485]
[1754491237957,0.68509882,114280.0,114270.0,1.0554685]
[1754491238150,0.86010212,114280.0,114270.0,1.0554685]
[1754491238348,0.90814212,114280.0,114270.0,1.0640387]
[1754491238548,0.91214212,114280.0,114270.0,1.0554685]
[1754491239954,0.91214312,114280.0,114270.0,1.0554685]
[1754491240844,0.73713882,114280.0,114270.0,1.0554685]
[1754491241045,0.91214312,114280.0,114270.0,1.0554685]
[1754491241957,0.91214312,114280.0,114270.0,1.06419016]
[1754491243752,0.91714312,114280.0,114270.0,1.06419016]
[1754491244653,0.59943882,114280.0,114270.0,1.06419016]
[1754491244859,0.91714272,114280.0,114270.0,1.06419016]
[1754491253765,0.53146882,114280.0,114270.0,1.06419016]
[1754491253967,0.05535,114280.0,114270.0,1.37313898]
[1754491254266,0.05704,114280.0,114270.0,1.37313898]
[1754491254469,0.05704,114280.0,114270.0,1.06419016]
[1754491254964,0.42419,114310.0,114300.0,0.4205238]
[1754491255265,0.37615,114330.0,114320.0,0.2052135]
[1754491255570,0.5510782,114330.0,114320.0,1.0820935]
[1754491255864,0.5991182,114330.0,114320.0,1.0820935]
[1754491256465,0.90806702,114330.0,114320.0,1.0820935]
[1754491256863,0.91306702,114330.0,114320.0,1.0820935]
[1754491257062,0.6041182,114330.0,114320.0,1.0820935]
[1754491257461,0.42919,114330.0,114320.0,1.0820935]
[1754491257770,0.4614181,114330.0,114320.0,1.0820935]
[1754491258164,0.6041181,114330.0,114320.0,1.0820935]
[1754491258365,0.05135,114330.0,114320.0,1.0820935]
[1754491258557,0.2743181,114330.0,114320.0,1.0820935]
[1754491258762,0.2753181,114330.0,114320.0,1.0820935]
[1754491259068,0.4859881,114330.0,114320.0,1.0820935]
[1754491260473,0.5175281,114330.0,114320.0,1.0820935]
[1754491260767,0.5175281,114330.0,114320.0,1.09088434]
[1754491261171,0.1809281,114330.0,114320.0,1.09088434]
[1754491261469,0.2289381,114330.0,114320.0,1.09088434]
[1754491261671,0.4803981,114330.0,114320.0,1.09088434]
[1754491261870,0.6058581,114330.0,114320.0,1.09088434]
[1754491262172,0.43093,114330.0,114320.0,1.09088434]
[1754491262377,0.10016,114330.0,114320.0,1.09088434]
[1754491262576,0.006,114330.0,114320.0,1.39983316]
[1754491264279,0.166,114350.0,114340.0,0.4688227]
[1754491264485,0.29947,114350.0,114340.0,1.0829027]
[1754491264981,0.42493,114350.0,114340.0,1.0829027]
[1754491265377,0.5998274,114350.0,114340.0,1.0829027]
[1754491265681,0.42493,114350.0,114340.0,1.0829027]
[1754491265880,0.6058274,114350.0,114340.0,1.0829027]
[1754491266288,0.6058274,114350.0,114340.0,0.4688227]
[1754491266582,0.91477622,114350.0,114340.0,1.0828627]
[1754491266788,0.91877622,114350.0,114340.0,1.0828627]
[1754491267289,0.74387882,114350.0,114340.0,1.0828627]
[1754491267489,0.43493,114350.0,114340.0,1.0828627]
[1754491267786,0.6098274,114350.0,114340.0,1.0828627]
[1754491268179,0.43493,114350.0,114340.0,1.0828627]
[1754491268579,0.6098273,114350.0,114340.0,1.0828627]
[1754491269985,0.5998424,114340.0,114330.0,0.5562946]
[1754491270282,0.90879122,114340.0,114330.0,1.1701746]
[1754491270482,0.90879122,114340.0,114330.0,0.5125636]
[1754491270680,0.90879122,114340.0,114330.0,0.64589]
[1754491270873,0.90879122,114340.0,114330.0,0.61388]
[1754491271083,0.5998424,114340.0,114330.0,0.7888077]
[1754491271283,0.91179122,114340.0,114330.0,0.7888077]
[1754491272082,0.91379122,114340.0,114330.0,0.9118677]
[1754491272278,0.91379122,114340.0,114330.0,0.9438777]
[1754491272474,0.6028424,114340.0,114330.0,1.0361977]
[1754491272786,0.30247,114340.0,114330.0,1.0887177]
[1754491273184,0.3439123,114340.0,114330.0,1.0827177]
[1754491273390,0.42793,114340.0,114330.0,1.0877177]
[1754491273589,0.42793,114340.0,114330.0,1.0876377]
[1754491273778,0.42493,114340.0,114330.0,1.0906377]
[1754491273979,0.5998423,114340.0,114330.0,1.0906377]
[1754491274281,0.42493,114340.0,114330.0,1.0906377]
[1754491274478,0.5998425,114340.0,114330.0,1.0876377]
[1754491274679,0.5998425,114340.0,114330.0,1.0896377]
[1754491276484,0.09416,114340.0,114330.0,1.0896377]
[1754491276682,0.6435643,114350.0,114340.0,0.4663825]
[1754491277388,1.0051419,114350.0,114340.0,0.4663825]
[1754491277589,1.0051419,114350.0,114340.0,0.4198625]
[1754491277791,1.0051419,114350.0,114340.0,0.4663825]
[1754491277992,0.6435643,114350.0,114340.0,0.4673825]
[1754491278192,0.42493,114350.0,114340.0,0.4673825]
[1754491278493,0.5998272,114350.0,114340.0,0.4673825]
[1754491279585,0.5998272,114350.0,114340.0,0.4703825]
[1754491279586,0.42493,114350.0,114340.0,0.4703825]
[1754491279787,0.5998272,114350.0,114340.0,0.4703825]
[1754491280786,0.9614048,114350.0,114340.0,0.24895]
[1754491280991,0.9614048,114350.0,114340.0,1.0375425]
[1754491281391,0.9614048,114350.0,114340.0,0.004]
[1754491281595,0.9614048,114350.0,114340.0,0.61764]
[1754491281996,0.9614048,114350.0,114340.0,0.7925525]
[1754491282892,0.9614048,114350.0,114340.0,0.004]
[1754491283998,1.3229824,114350.0,114340.0,0.004]
[1754491284299,0.5998578,114330.0,114320.0,0.22745884]
[1754491284493,0.5998578,114330.0,114320.0,0.832268]
[1754491284494,0.9614354,114330.0,114320.0,0.832268]
[1754491285796,0.9614354,114330.0,114300.0,0.2327631]
[1754491285797,0.5998885,114310.0,114300.0,0.7401711]
[1754491285998,0.9614661,114310.0,114300.0,0.5976711]
[1754491286188,0.9614661,114310.0,114300.0,0.9198011]
[1754491286396,0.9614661,114310.0,114300.0,0.92859667]
[1754491286601,0.9614661,114310.0,114300.0,0.7885738]
[1754491286793,0.5998885,114310.0,114300.0,1.0335238]
[1754491287000,0.5998885,114310.0,114300.0,1.0820438]
[1754491287500,0.5998885,114310.0,114300.0,1.0880438]
[1754491287704,0.5998885,114310.0,114300.0,1.0860438]
[1754491288095,0.5998885,114310.0,114300.0,1.08895453]
[1754491288299,0.5998885,114310.0,114300.0,1.09195453]
[1754491289296,0.5998885,114310.0,114300.0,1.04543453]
[1754491289803,0.5998885,114310.0,114300.0,1.09195453]
[1754491290893,0.7315323,114320.0,114310.0,0.4649084]
[1754491291303,1.0931099,114320.0,114310.0,0.4649084]
[1754491293103,1.1368362,114320.0,114310.0,0.002]
[1754491293310,1.1368362,114320.0,114310.0,0.1769584]
[1754491293801,1.1368362,114320.0,114310.0,0.1809584]
[1754491294002,1.0930971,114320.0,114310.0,0.4236184]
[1754491294197,1.0930971,114320.0,114310.0,0.4709084]
[1754491294403,0.7315195,114320.0,114310.0,0.4709084]
[1754491296709,1.0930971,114320.0,114310.0,0.3311684]
[1754491296908,1.0930971,114320.0,114310.0,0.2991284]
[1754491298204,0.7315195,114320.0,114310.0,0.2991284]
[1754491298501,1.0930971,114320.0,114310.0,0.2991284]